fUSD/lending_fUSD_20260226
["ID","MTS","AMOUNT","RATE_DAILY","PERIOD"]
[406714851,1772113842291,-1000.0,9.77e-05,2]
[406714852,1772113842301,-500.0,9.77e-05,2]
[406714853,1772113842311,-1000.0,9.77e-05,2]
[406714854,1772113842320,-500.0,9.77e-05,2]
[406714855,1772113842330,-1000.0,9.77e-05,2]
[406714856,1772113842340,-500.0,9.77e-05,2]
[406714857,1772113842350,-500.0,9.77e-05,2]
[406714858,1772113842360,-151.0,9.778e-05,2]
[406714859,1772113842370,-173.14699767,9.781e-05,7]
[406714860,1772113842380,-120635.16268728,9.781e-05,7]
[406714873,1772113843554,-980.64094141,9.539e-05,2]
[406714874,1772113843612,-5002.35905859,9.539e-05,2]
[406714875,1772113843622,-69461.8304039,9.781e-05,7]
[406714876,1772113843632,-151.0,9.781e-05,2]
[406714877,1772113843641,-151.0,9.781e-05,2]
[406714878,1772113843651,-151.0,9.781e-05,2]
[406714879,1772113843660,-151.0,9.781e-05,2]
[406714880,1772113843670,-181.386797,9.781e-05,2]
[406714881,1772113843680,-181.386797,9.781e-05,2]
[406714882,1772113843689,-181.386797,9.781e-05,2]
[406714883,1772113843699,-181.386797,9.781e-05,2]
[406714884,1772113843708,-339.340161,9.781e-05,2]
[406714885,1772113843718,-339.340161,9.781e-05,2]
[406714886,1772113843727,-339.340161,9.781e-05,2]
[406714887,1772113843736,-339.340161,9.781e-05,2]
[406714888,1772113843745,-151.0,9.781e-05,2]
[406714889,1772113843755,-151.0,9.781e-05,2]
[406714890,1772113843764,-205.0,9.8e-05,2]
[406714891,1772113843773,-150.0,9.839e-05,2]
[406714892,1772113843783,-500.0,9.863e-05,2]
[406714893,1772113843794,-28353.88105348,9.95e-05,2]
[406714894,1772113843805,-1000.0,0.0001,2]
[406714895,1772113843815,-1000.0,0.0001,2]
[406714896,1772113843825,-1000.0,0.0001,2]
[406714897,1772113843835,-1000.0,0.0001,2]
[406714898,1772113843845,-1000.0,0.0001,2]
[406714899,1772113843855,-1000.0,0.0001,2]
[406714900,1772113843865,-755.48875966,0.0001,2]
[406714901,1772113843876,-151.0,0.0001,2]
[406714903,1772113843886,-664.76668475,0.0001,2]
[406714905,1772113843895,-3300.0,0.0001,3]
[406714907,1772113843904,-500.0,0.0001,2]
[406714908,1772113843913,-151.0,0.0001,2]
[406714909,1772113843923,-151.0,0.0001,2]
[406714910,1772113843934,-500.0,0.0001,2]
[406714911,1772113843943,-151.0,0.0001,2]
[406714912,1772113843953,-500.0,0.0001,2]
[406714913,1772113843962,-151.0,0.0001,2]
[406714914,1772113843971,-500.0,0.0001,2]
[406714915,1772113843981,-500.0,0.0001,2]
[406714916,1772113843991,-151.0,0.0001,2]
[406714917,1772113844001,-500.0,0.0001,2]
[406714918,1772113844011,-553.9571256,0.0001,2]
[406714919,1772113844020,-151.0,0.0001,2]
[406714920,1772113844030,-500.0,0.0001,2]
[406714921,1772113844040,-151.0,0.0001,2]
[406714922,1772113844050,-500.0,0.0001,2]
[406714923,1772113844059,-151.0,0.0001,2]
[406714924,1772113844068,-500.0,0.0001,2]
[406714925,1772113844077,-151.0,0.0001,2]
[406714926,1772113844087,-500.0,0.0001,2]
[406714927,1772113844097,-151.0,0.0001,2]
[406714928,1772113844106,-500.0,0.0001,2]
[406714929,1772113844116,-151.0,0.0001,2]
[406714930,1772113844126,-500.0,0.0001,2]
[406714931,1772113844135,-151.0,0.0001,2]
[406714932,1772113844145,-500.0,0.0001,2]
[406714933,1772113844155,-151.0,0.0001,2]
[406714934,1772113844164,-500.0,0.0001,2]
[406714935,1772113844173,-151.0,0.0001,2]
[406714936,1772113844184,-500.0,0.0001,2]
[406714937,1772113844194,-151.0,0.0001,2]
[406714938,1772113844204,-500.0,0.0001,2]
[406714939,1772113844214,-151.0,0.0001,2]
[406714940,1772113844224,-151.0,0.0001,2]
[406714941,1772113844234,-151.0,0.0001,2]
[406714942,1772113844244,-151.0,0.0001,2]
[406714943,1772113844253,-151.0,0.0001,2]
[406714944,1772113844262,-151.0,0.0001,2]
[406714945,1772113844271,-151.0,0.0001,2]
[406714946,1772113844280,-151.0,0.0001,2]
[406714947,1772113844289,-200.0,0.0001,2]
[406714948,1772113844298,-151.0,0.0001,2]
[406714949,1772113844308,-151.0,0.0001,2]
[406714950,1772113844317,-151.0,0.0001,2]
[406714951,1772113844327,-151.0,0.0001,2]
[406714952,1772113844337,-151.0,0.0001,2]
[406714953,1772113844347,-151.0,0.0001,2]
[406714954,1772113844356,-151.0,0.0001,2]
[406714955,1772113844366,-151.0,0.0001,2]
[406714956,1772113844375,-151.0,0.0001,2]
[406714957,1772113844385,-151.0,0.0001,2]
[406714958,1772113844395,-151.0,0.0001,2]
[406714959,1772113844404,-151.0,0.0001,2]
[406714960,1772113844413,-151.0,0.0001,2]
[406714961,1772113844422,-151.0,0.0001,2]
[406714962,1772113844432,-151.0,0.0001,2]
[406714963,1772113844442,-151.0,0.0001,2]
[406714964,1772113844451,-151.0,0.0001,2]
[406714965,1772113844460,-200.0,0.0001,2]
[406714966,1772113844470,-151.0,0.0001,2]
[406714967,1772113844479,-151.0,0.0001,2]
[406714968,1772113844488,-151.0,0.0001,2]
[406714969,1772113844498,-151.0,0.0001,2]
[406714970,1772113844507,-151.0,0.0001,2]
[406714971,1772113844517,-151.0,0.0001,2]
[406714972,1772113844526,-151.0,0.0001,2]
[406714973,1772113844536,-151.0,0.0001,2]
[406714974,1772113844545,-151.0,0.0001,2]
[406714975,1772113844554,-151.0,0.0001,2]
[406714976,1772113844564,-151.0,0.0001,2]
[406714977,1772113844573,-1176.11206,0.0001,2]
[406714978,1772113844583,-1176.11206,0.0001,2]
[406714979,1772113844592,-1176.11207,0.0001,2]
[406714980,1772113844601,-1176.11207,0.0001,2]
[406714981,1772113844612,-1176.11206,0.0001,2]
[406714982,1772113844621,-1176.11207,0.0001,2]
[406714983,1772113844630,-1186.11241235,0.0001,2]
[406714984,1772113844640,-367.75891248,0.0001,2]
[406714985,1772113844650,-1070.62307231,0.0001,2]
[406714986,1772113844660,-412.37,0.00010046,2]
[406714987,1772113844670,-150.0,0.00010077,2]
[406714988,1772113844680,-215.0,0.00010077,2]
[406714989,1772113844689,-150.061,0.00010077,2]
[406714990,1772113844698,-150.05,0.00010077,2]
[406714991,1772113844707,-150.0,0.00010077,2]
[406714992,1772113844716,-150.034,0.00010077,2]
[406714993,1772113844725,-150.0,0.00010077,2]
[406714994,1772113844735,-150.0,0.00010077,2]
[406714995,1772113844744,-150.203,0.00010077,2]
[406714996,1772113844753,-150.0,0.00010077,2]
[406714997,1772113844763,-1000.0,0.00010274,2]
[406714998,1772113844772,-500.0,0.000103,2]
[406714999,1772113844781,-115.83999229,0.000103,2]
[406715000,1772113844797,-384.16000771,0.000103,2]
[406715001,1772113844806,-500.0,0.000103,2]
[406715002,1772113844816,-500.0,0.000103,2]
[406715003,1772113844824,-500.0,0.000103,2]
[406715004,1772113844835,-500.0,0.000103,2]
[406715005,1772113844844,-709.8815603,0.000103,2]
[406715006,1772113844853,-500.0,0.000103,2]
[406715007,1772113844863,-500.0,0.000103,2]
[406715008,1772113844872,-500.0,0.000103,2]
[406715009,1772113844881,-500.0,0.000103,2]
[406715010,1772113844890,-500.0,0.000103,2]
[406715011,1772113844899,-500.0,0.000103,2]
[406715012,1772113845008,-500.0,0.000103,2]
[406715013,1772113845018,-802.50664403,0.000103,2]
[406715014,1772113845028,-239.09040601,0.000103,2]
[406715015,1772113846223,-296.09,0.0001,2]
[406715016,1772113846235,-202.48501356,0.0001,2]
[406715017,1772113846246,-277.52298937,0.0001,2]
[406715018,1772113846256,-260.90959399,0.000103,2]
[406715019,1772113846265,-500.0,0.000103,2]
[406715020,1772113846275,-500.0,0.000103,2]
[406715021,1772113846285,-500.0,0.000103,2]
[406715022,1772113846294,-500.0,0.000103,2]
[406715023,1772113846304,-500.0,0.000103,2]
[406715024,1772113846313,-890.92531808,0.000103,2]
[406715025,1772113846322,-500.0,0.000103,2]
[406715026,1772113846332,-500.0,0.000103,2]
[406715027,1772113846341,-500.0,0.000103,2]
[406715028,1772113846350,-500.0,0.000103,2]
[406715029,1772113846360,-500.0,0.000103,2]
[406715030,1772113846369,-500.0,0.000103,2]
[406715031,1772113846379,-818.6561324,0.000103,2]
[406715032,1772113846388,-580.51646686,0.000103,2]
[406715033,1772113846397,-500.0,0.000103,2]
[406715034,1772113846406,-500.0,0.000103,2]
[406715035,1772113846416,-500.0,0.000103,2]
[406715036,1772113846425,-500.0,0.000103,2]
[406715037,1772113846435,-500.0,0.000103,2]
[406715038,1772113846444,-500.0,0.000103,2]
[406715039,1772113846454,-500.0,0.000103,2]
[406715040,1772113846464,-889.12448335,0.000103,2]
[406715041,1772113846473,-500.0,0.000103,2]
[406715042,1772113846482,-500.0,0.000103,2]
[406715043,1772113846491,-500.0,0.000103,2]
[406715044,1772113846503,-799.26635576,0.000103,2]
[406715045,1772113846512,-500.0,0.000103,2]
[406715046,1772113846522,-500.0,0.000103,2]
[406715047,1772113846531,-500.0,0.000103,2]
[406715048,1772113846540,-500.0,0.000103,2]
[406715049,1772113846549,-500.0,0.000103,2]
[406715050,1772113846558,-500.0,0.000103,2]
[406715051,1772113846568,-500.0,0.000103,2]
[406715052,1772113846577,-500.0,0.000103,2]
[406715053,1772113846586,-500.0,0.000103,2]
[406715054,1772113846595,-500.0,0.000103,2]
[406715055,1772113846604,-500.0,0.000103,2]
[406715056,1772113846613,-779.42317605,0.000103,2]
[406715057,1772113846623,-500.0,0.000103,2]
[406715058,1772113846632,-770.08998658,0.000103,2]
[406715059,1772113846642,-917.91,0.00010427,2]
[406715060,1772113846652,-412.37,0.00010502,2]
[406715061,1772113846661,-900.800484,0.00010583,2]
[406715110,1772113914387,150.0,0.000163,120]
[406715111,1772114003416,10000.0,0.0001789,120]
[406715112,1772114015615,10000.0,0.0001789,120]
[406715113,1772114029477,5832.0,0.0001789,120]
[406715115,1772114105377,150.0,0.000163,120]
[406715116,1772114295604,150.0,0.000163,120]
[406715117,1772114403823,150.0,7.091e-05,7]
[406715118,1772114408096,156.21,4.244e-05,2]
[406715119,1772114408467,156.21,4.74e-05,2]
[406715120,1772114408780,156.21,5.236e-05,2]
[406715121,1772114409293,156.21,5.732e-05,2]
[406715122,1772114409603,156.21,6.228e-05,2]
[406715123,1772114460875,150.0,0.00011233,120]
[406715124,1772114487958,150.0,0.000163,120]
[406715131,1772114679292,150.0,0.000163,120]
[406715152,1772114868889,150.0,0.000163,120]
[406715262,1772115031442,-156.21,6.724e-05,2]
[406715263,1772115031459,-400.0,6.8e-05,2]
[406715264,1772115031468,-800.0,6.9e-05,2]
[406715265,1772115031478,-500.0,6.983e-05,2]
[406715266,1772115031487,-151.0,6.997e-05,2]
[406715267,1772115031497,-1000.0,6.999e-05,2]
[406715268,1772115031507,-150.0,6.999e-05,2]
[406715269,1772115031517,-300.0,6.999e-05,2]
[406715270,1772115031526,-1200.0,6.999e-05,2]
[406715271,1772115031538,-221.83,7e-05,2]
[406715272,1772115031548,-150.0,7e-05,2]
[406715273,1772115031558,-413.76,7e-05,2]
[406715274,1772115031569,-5000.0,7e-05,2]
[406715275,1772115031582,-355.00000001,7e-05,2]
[406715276,1772115031594,-626.26,7e-05,2]
[406715277,1772115031605,-607177.76149715,7e-05,2]
[406715278,1772115031618,-543.6,7e-05,2]
[406715293,1772115037464,-333.52706538,7e-05,2]
[406715294,1772115037634,-6187.95,7e-05,2]
[406715347,1772115039653,-292106.88246072,7e-05,2]
[406715348,1772115039665,-364.42072558,7e-05,2]
[406715358,1772115042779,-497.84524821,7e-05,2]
[406715359,1772115042791,-686520.12038729,7e-05,2]
[406715530,1772115057939,282.13,0.000163,120]
[406715536,1772116065681,181.0,0.0001,120]
[406715559,1772116207766,259.3,6.415e-05,2]
[406715564,1772116231580,-1500.0,6.591e-05,2]
[406715565,1772116231589,-172.35,6.6e-05,2]
[406715566,1772116231602,-250.0,6.634e-05,2]
[406715567,1772116231612,-4491.26170584,6.677e-05,2]
[406715568,1772116231623,-1200.0,6.699e-05,2]
[406715569,1772116231632,-150.0,6.699e-05,2]
[406715570,1772116231642,-191.0,6.699e-05,2]
[406715571,1772116231651,-300.0,6.699e-05,2]
[406715572,1772116231660,-610419.19175795,6.7e-05,2]
[406715573,1772116231671,-198048.5563684,6.7e-05,2]
[406715574,1772116231683,-183971.96060385,6.7e-05,2]
[406715575,1772116231694,-364559.24991157,6.7e-05,2]
[406715576,1772116231705,-1254.41808677,6.7e-05,2]
[406715587,1772116231897,-40308.05549463,6.7e-05,2]
[406715590,1772116231915,-10468.8,6.7e-05,2]
[406715592,1772116231929,-7382.376725,6.7e-05,2]
[406715595,1772116231943,-2561.15035439,6.7e-05,2]
[406715597,1772116231954,-848.47439461,6.7e-05,2]
[406715599,1772116231966,-735.89640059,6.7e-05,2]
[406715601,1772116231978,-1189.407222,6.7e-05,2]
[406715604,1772116231990,-636.11032559,6.7e-05,2]
[406715607,1772116232010,-468.75595281,6.7e-05,2]
[406715609,1772116232021,-1004.43383659,6.7e-05,2]
[406715612,1772116232040,-946.4836003,6.7e-05,2]
[406715622,1772116237730,-390.62,6.7e-05,2]
[406715623,1772116237742,-142550.45104361,6.7e-05,2]
[406715624,1772116237796,-874.14799494,6.7e-05,2]
[406715625,1772116237919,-951.34780409,6.7e-05,2]
[406715626,1772116237934,-464.31085152,6.7e-05,2]
[406715627,1772116237945,-4277.54192495,6.7e-05,2]
[406715628,1772116237993,-836.99464944,6.7e-05,2]
[406715635,1772116239937,-424851.2646964,6.7e-05,2]
[406715636,1772116239947,-1000.09,6.762e-05,2]
[406715637,1772116239957,-1274.0,6.767e-05,2]
[406715638,1772116239966,-4844.0,6.767e-05,2]
[406715639,1772116239974,-12516.14437374,6.79e-05,2]
[406715640,1772116239984,-151.0,6.797e-05,2]
[406715641,1772116239993,-487.78282479,6.799e-05,2]
[406715642,1772116240005,-500.0,6.799e-05,2]
[406715643,1772116240015,-211.44916814,6.799e-05,2]
[406715644,1772116240024,-573.04,6.799e-05,2]
[406715645,1772116240033,-184.54572167,6.799e-05,2]
[406715646,1772116240042,-500.0,6.799e-05,2]
[406715647,1772116240052,-500.0,6.799e-05,2]
[406715648,1772116240061,-500.0,6.799e-05,2]
[406715649,1772116240070,-500.0,6.799e-05,2]
[406715650,1772116240078,-500.0,6.799e-05,2]
[406715651,1772116240087,-500.0,6.799e-05,2]
[406715652,1772116240097,-500.0,6.799e-05,2]
[406715653,1772116240105,-500.0,6.799e-05,2]
[406715654,1772116240114,-500.0,6.799e-05,2]
[406715655,1772116240123,-150.94326375,6.799e-05,2]
[406715656,1772116240132,-500.0,6.799e-05,2]
[406715657,1772116240141,-500.0,6.799e-05,2]
[406715658,1772116240150,-500.0,6.799e-05,2]
[406715659,1772116240160,-1100.0,6.8e-05,2]
[406715660,1772116240169,-716.0,6.877e-05,2]
[406715661,1772116240178,-1721.0,6.897e-05,2]
[406715662,1772116240188,-2300.0,6.9e-05,2]
[406715663,1772116240197,-1069.0,6.911e-05,2]
[406715664,1772116240206,-1297.0,6.924e-05,2]
[406715665,1772116240215,-1994.0,6.938e-05,2]
[406715666,1772116240224,-1369.0,6.952e-05,2]
[406715667,1772116240233,-242.0,6.955e-05,2]
[406715668,1772116240242,-776.0,6.966e-05,2]
[406715669,1772116240252,-321.0,6.969e-05,2]
[406715670,1772116240264,-214.0,6.975e-05,2]
[406715671,1772116240273,-397.0,6.989e-05,2]
[406715672,1772116240282,-500.0,6.993e-05,2]
[406715673,1772116240291,-458.57280982,6.999e-05,2]
[406715674,1772116240300,-3500.0,7e-05,2]
[406715675,1772116240310,-214.0,7.003e-05,2]
[406715676,1772116240319,-315.0,7.007e-05,2]
[406715677,1772116240329,-1562.0,7.021e-05,2]
[406715678,1772116240476,-457.0,7.032e-05,2]
[406715679,1772116240489,-1890.0,7.035e-05,2]
[406715680,1772116240499,-170.0,7.046e-05,2]
[406715681,1772116240515,-979.0,7.049e-05,2]
[406715682,1772116240525,-537.0,7.06e-05,2]
[406715683,1772116240536,-1876.0,7.063e-05,2]
[406715684,1772116240549,-573.04,7.073e-05,2]
[406715685,1772116240560,-470.0,7.077e-05,2]
[406715686,1772116240569,-291.92107206,7.098e-05,2]
[406715687,1772116240580,-3955.85591346,7.1e-05,2]
[406715688,1772116240591,-10425.81096624,7.1e-05,2]
[406715689,1772116240601,-5478.19827879,7.1e-05,2]
[406715690,1772116240612,-2062.47216723,7.1e-05,2]
[406715691,1772116240622,-1359.57593508,7.1e-05,2]
[406715692,1772116240632,-1302.72360362,7.1e-05,2]
[406715693,1772116240641,-165.0,7.117e-05,2]
[406715694,1772116240651,-1502.82666669,7.126e-05,2]
[406715695,1772116240661,-150.0,7.155e-05,2]
[406715696,1772116240671,-156.21,7.22e-05,2]
[406715697,1772116240681,-1049.33195524,7.227e-05,2]
[406715698,1772116240690,-5000.0,7.251e-05,2]
[406715699,1772116240700,-250.0,7.251e-05,2]
[406715700,1772116240710,-5000.0,7.251e-05,2]
[406715701,1772116240720,-250.0,7.251e-05,2]
[406715702,1772116240730,-166.66,7.347e-05,2]
[406715704,1772116240740,-573.04,7.347e-05,2]
[406715706,1772116240750,-1680.0,7.369e-05,2]
[406715708,1772116240764,-255.0,7.369e-05,2]
[406715710,1772116240773,-420.0,7.369e-05,2]
[406715711,1772116240782,-166.66,7.589e-05,2]
[406715712,1772116240791,-573.04,7.621e-05,2]
[406715713,1772116240802,-29748.84,7.671e-05,2]
[406715714,1772116240811,-156.21,7.716e-05,2]
[406715715,1772116240820,-4520.3,7.808e-05,2]
[406715716,1772116240830,-166.66,7.832e-05,2]
[406715717,1772116240839,-6643.01,7.886e-05,2]
[406715718,1772116240849,-573.04,7.895e-05,2]
[406715719,1772116240858,-37901.47,8.058e-05,2]
[406715720,1772116240867,-166.66,8.074e-05,2]
[406715721,1772116240877,-433.0,8.106e-05,2]
[406715722,1772116240886,-2351.0,8.106e-05,2]
[406715723,1772116240896,-587.0,8.106e-05,2]
[406715724,1772116240905,-573.07776369,8.169e-05,2]
[406715725,1772116240914,-6055.704669,8.178e-05,2]
[406715726,1772116240925,-204.48,8.181e-05,2]
[406715727,1772116240934,-153.09966258,8.219e-05,2]
[406715728,1772116240944,-150.0,8.219e-05,2]
[406715729,1772116240952,-150.0,8.219e-05,2]
[406715730,1772116240962,-150.0,8.219e-05,2]
[406715731,1772116240971,-150.0,8.219e-05,2]
[406715732,1772116240981,-150.0,8.219e-05,2]
[406715733,1772116240991,-150.0,8.219e-05,2]
[406715734,1772116241000,-150.0,8.219e-05,2]
[406715735,1772116241016,-150.0,8.219e-05,2]
[406715736,1772116241026,-150.0,8.219e-05,2]
[406715737,1772116241035,-150.0,8.219e-05,2]
[406715738,1772116241045,-150.0,8.219e-05,2]
[406715739,1772116241054,-162.43895648,8.219e-05,2]
[406715740,1772116241064,-150.0,8.219e-05,2]
[406715741,1772116241073,-150.0,8.219e-05,2]
[406715742,1772116241083,-150.0,8.219e-05,2]
[406715743,1772116241092,-150.0,8.219e-05,2]
[406715744,1772116241102,-150.0,8.219e-05,2]
[406715745,1772116241111,-150.0,8.219e-05,2]
[406715746,1772116241120,-150.0,8.219e-05,2]
[406715747,1772116241129,-150.0,8.219e-05,2]
[406715748,1772116241138,-150.0,8.219e-05,2]
[406715749,1772116241148,-150.0,8.219e-05,2]
[406715750,1772116241157,-150.0,8.219e-05,2]
[406715751,1772116241166,-150.0,8.219e-05,2]
[406715752,1772116241176,-150.0,8.219e-05,2]
[406715753,1772116241185,-150.0,8.219e-05,2]
[406715754,1772116241194,-369.101714,8.219e-05,2]
[406715755,1772116241205,-500.0,8.219e-05,2]
[406715756,1772116241215,-3921.74,8.219e-05,2]
[406715757,1772116241224,-1000.0,8.219e-05,2]
[406715758,1772116241233,-1847.4,8.219e-05,2]
[406715759,1772116241243,-2903.08,8.219e-05,2]
[406715760,1772116241255,-250.0,8.22e-05,2]
[406715761,1772116241265,-150.0,8.274e-05,2]
[406715762,1772116241276,-150.0,8.274e-05,2]
[406715763,1772116241285,-150.0,8.274e-05,2]
[406715764,1772116241295,-150.0,8.274e-05,2]
[406715765,1772116241305,-150.0,8.274e-05,2]
[406715766,1772116241315,-150.0,8.274e-05,2]
[406715767,1772116241324,-150.0,8.274e-05,2]
[406715768,1772116241333,-150.0,8.274e-05,2]
[406715769,1772116241343,-150.0,8.274e-05,2]
[406715770,1772116241352,-150.0,8.274e-05,2]
[406715771,1772116241362,-150.0,8.274e-05,2]
[406715772,1772116241371,-150.0,8.274e-05,2]
[406715773,1772116241381,-150.0,8.274e-05,2]
[406715774,1772116241391,-166.66,8.317e-05,2]
[406715775,1772116241401,-150.0,8.329e-05,2]
[406715776,1772116241411,-5935.0,8.361e-05,2]
[406715777,1772116241420,-250.0,8.383e-05,2]
[406715778,1772116241430,-500.0,8.493e-05,2]
[406715779,1772116241439,-166.66,8.559e-05,2]
[406715780,1772116241448,-151.0,8.567e-05,2]
[406715781,1772116241458,-693.3919763,8.567e-05,2]
[406715782,1772116241468,-309.29654756,8.567e-05,2]
[406715783,1772116241477,-373.19905658,8.567e-05,2]
[406715784,1772116241487,-500.0,8.567e-05,2]
[406715785,1772116241496,-500.0,8.567e-05,2]
[406715786,1772116241509,-500.0,8.567e-05,2]
[406715787,1772116241521,-500.0,8.567e-05,2]
[406715788,1772116241530,-500.0,8.567e-05,2]
[406715789,1772116241540,-500.0,8.567e-05,2]
[406715790,1772116241550,-500.0,8.567e-05,2]
[406715791,1772116241560,-500.0,8.567e-05,2]
[406715792,1772116241570,-500.0,8.567e-05,2]
[406715793,1772116241579,-500.0,8.567e-05,2]
[406715794,1772116241589,-500.0,8.567e-05,2]
[406715795,1772116241600,-618.0,8.598e-05,2]
[406715796,1772116241610,-1340.0,8.598e-05,2]
[406715797,1772116241620,-719.04747942,8.622e-05,2]
[406715798,1772116241629,-745.65223616,8.677e-05,2]
[406715799,1772116241639,-773.2413689,8.732e-05,2]
[406715800,1772116241648,-500.0,8.767e-05,2]
[406715801,1772116241658,-801.85129955,8.787e-05,2]
[406715802,1772116241667,-831.51979763,8.842e-05,2]
[406715803,1772116241677,-151.0,8.861e-05,2]
[406715804,1772116241686,-9999.99,8.864e-05,2]
[406715805,1772116241695,-9999.99,8.864e-05,2]
[406715806,1772116241705,-5312.87,8.864e-05,2]
[406715807,1772116241715,-999.99,8.864e-05,2]
[406715808,1772116241725,-299.99,8.864e-05,2]
[406715809,1772116241741,-9999.99,8.864e-05,2]
[406715810,1772116241758,-9999.99,8.864e-05,2]
[406715811,1772116241772,-9386.31,8.864e-05,2]
[406715812,1772116241783,-150.99,8.864e-05,2]
[406715813,1772116241793,-150.99,8.864e-05,2]
[406715814,1772116241804,-862.28603014,8.897e-05,2]
[406715815,1772116241817,-329.34,8.9e-05,2]
[406715816,1772116241827,-191.0,8.916e-05,2]
[406715817,1772116241837,-3292.0,8.916e-05,2]
[406715818,1772116241847,-823.0,8.916e-05,2]
[406715819,1772116241857,-894.19061326,8.952e-05,2]
[406715820,1772116241867,-927.27566595,9.007e-05,2]
[406715821,1772116241878,-500.0,9.041e-05,2]
[406715822,1772116241888,-961.58486559,9.062e-05,2]
[406715823,1772116241898,-151.0,9.115e-05,2]
[406715824,1772116241909,-1000.0,9.247e-05,2]
[406715825,1772116241921,-500.0,9.315e-05,2]
[406715826,1772116241930,-410.87669946,9.589e-05,2]
[406715827,1772116241941,-1277.0,9.647e-05,2]
[406715828,1772116241951,-1211.0,9.647e-05,2]
[406715829,1772116241960,-920.0,9.647e-05,2]
[406715830,1772116241970,-986.84,9.692e-05,2]
[406715831,1772116241980,-631.8277679,9.77e-05,2]
[406715832,1772116241990,-1000.0,9.77e-05,2]
[406715833,1772116242001,-1000.0,9.77e-05,2]
[406715834,1772116242020,-1569.43003623,9.77e-05,2]
[406715835,1772116242031,-4609.0,9.808e-05,2]
[406715836,1772116242041,-197.0,9.808e-05,2]
[406715837,1772116242051,-150.0,9.838e-05,2]
[406715838,1772116242062,-150.0,9.838e-05,2]
[406715839,1772116242072,-500.0,9.881e-05,2]
[406715840,1772116242083,-500.0,9.881e-05,2]
[406715841,1772116242093,-700.0,9.881e-05,2]
[406715842,1772116242103,-151.0,0.0001,2]
[406715843,1772116242113,-151.0,0.0001,2]
[406715844,1772116242123,-151.0,0.0001,2]
[406715845,1772116242133,-151.0,0.0001,2]
[406715846,1772116242143,-151.0,0.0001,2]
[406715847,1772116242153,-151.0,0.0001,2]
[406715848,1772116242163,-151.0,0.0001,2]
[406715849,1772116242173,-151.0,0.0001,2]
[406715850,1772116242182,-151.0,0.0001,2]
[406715851,1772116242192,-151.0,0.0001,2]
[406715852,1772116242201,-151.0,0.0001,2]
[406715853,1772116242211,-500.0,0.0001,2]
[406715854,1772116242221,-500.0,0.0001,2]
[406715855,1772116242231,-500.0,0.0001,2]
[406715856,1772116242240,-151.0,0.0001,2]
[406715857,1772116242250,-500.0,0.0001,2]
[406715858,1772116242266,-151.0,0.0001,2]
[406715859,1772116242276,-500.0,0.0001,2]
[406715860,1772116242287,-151.0,0.0001,2]
[406715861,1772116242298,-500.0,0.0001,2]
[406715862,1772116242308,-151.0,0.0001,2]
[406715863,1772116242318,-502.62170178,0.0001,2]
[406715864,1772116242328,-151.0,0.0001,2]
[406715865,1772116242338,-151.0,0.0001,2]
[406715866,1772116242348,-151.0,0.0001,2]
[406715867,1772116242465,-151.0,0.0001,2]
[406715868,1772116242476,-151.0,0.0001,2]
[406715869,1772116242486,-151.0,0.0001,2]